bitfinex/quotes_SOLUSD_20250928
["timestamp","ask_amount","ask_price","bid_price","bid_amount"]
[1759079886405,38.3,205.37,205.36,2.38205352]
[1759079886708,38.28,205.37,205.36,2.38205352]
[1759079886884,26.69,205.42,205.36,2.38205352]
[1759079887209,38.28,205.41,205.36,2.38205352]
[1759079887378,2.39205352,205.41,205.36,0.68]
[1759079887581,0.69,205.4,205.35,1.70205352]
[1759079887879,38.97,205.39,205.34,2.38205352]
[1759079888091,0.69,205.39,205.35,0.68]
[1759079888289,38.28,205.38,205.35,0.68]
[1759079888482,38.28,205.37,205.35,0.68]
[1759079888684,0.69,205.39,205.34,1.70205352]
[1759079888882,0.69,205.39,205.35,1.70205352]
[1759079889103,38.28,205.38,205.35,1.70205352]
[1759079889707,38.28,205.38,205.35,2.38205352]
[1759079889891,38.28,205.37,205.33,0.68]
[1759079890090,38.28,205.37,205.34,2.38205352]
[1759079890888,38.28,205.37,205.33,1.70205352]
[1759079891185,39.0,205.36,205.32,2.39205352]
[1759079891384,38.28,205.35,205.32,1.70205352]
[1759079891587,38.28,205.35,205.33,0.69]
[1759079891881,0.72,205.34,205.28,0.2]
[1759079892086,39.98205352,205.33,205.28,0.2]
[1759079892295,0.72,205.32,205.28,0.2]
[1759079892503,38.28,205.31,205.28,0.2]
[1759079892676,38.28,205.3,205.28,0.2]
[1759079892879,2.42205352,205.36,205.29,2.39205352]
[1759079893101,2.42205352,205.36,205.3,1.70205352]
[1759079893302,38.28,205.35,205.3,1.70205352]
[1759079893487,39.0,205.35,205.3,2.39205352]
[1759079894097,39.0,205.35,205.3,0.69]
[1759079894407,0.72,205.34,205.3,2.39205352]
[1759079894709,38.28,205.33,205.3,2.39205352]
[1759079895277,38.28,205.32,205.3,2.39205352]
[1759079895477,38.28,205.32,205.3,1.70205352]
[1759079896388,38.28,205.32,205.29,1.70205352]
[1759079896708,38.28,205.31,205.29,2.39205352]
[1759079897390,39.0,205.31,205.29,1.70205352]
[1759079897591,38.28,205.3,205.29,1.70205352]
[1759079897893,0.72,205.3,205.28,0.2]
[1759079898104,39.0,205.29,205.28,0.2]
[1759079899211,0.72,205.29,205.28,0.2]
[1759079899704,39.0,205.29,205.28,0.2]
[1759079900313,38.28,205.29,205.28,0.2]
[1759079900691,0.72,205.31,205.28,0.2]
[1759079900898,38.28,205.3,205.28,0.2]
[1759079901201,0.71,205.31,205.28,1.90205352]
[1759079901402,0.71,205.3,205.28,1.90205352]
[1759079901601,26.0,205.33,205.28,1.90205352]
[1759079901806,1.70205352,205.4,205.32,1.70205352]
[1759079902022,136.71757143,205.42,205.32,1.70205352]
[1759079902023,26.0,205.36,205.35,1.70205352]
[1759079902513,0.71,205.4,205.35,2.36205352]
[1759079902699,38.26,205.36,205.35,0.66]
[1759079903097,26.0,205.41,205.35,0.66]
[1759079903296,38.26,205.38,205.35,0.66]
[1759079903492,38.26,205.37,205.35,5.52971876]
[1759079903714,0.71,205.42,205.35,4.86971876]
[1759079903908,38.26,205.36,205.35,4.86971876]
[1759079904515,38.26,205.36,205.35,0.66]
[1759079904886,26.71,205.42,205.35,0.66]
[1759079905101,26.71,205.42,205.38,1.70205352]
[1759079905303,26.0,205.39,205.38,1.70205352]
[1759079905701,26.0,205.39,205.31,12.17652141]
[1759079905702,0.71,205.39,205.32,0.66]
[1759079906025,40.67205352,205.39,205.33,1.70205352]
[1759079906192,38.26,205.38,205.34,1.70205352]
[1759079906392,38.97,205.38,205.34,1.70205352]
[1759079906612,38.26,205.38,205.32,0.66]
[1759079906932,38.97,205.38,205.35,1.70205352]
[1759079907292,0.71,205.37,205.35,1.70205352]
[1759079907618,38.26,205.38,205.35,1.70205352]
[1759079907818,0.71,205.39,205.35,1.70205352]
[1759079908127,26.71,205.42,205.37,1.70205352]
[1759079908287,26.0,205.39,205.38,1.70205352]
[1759079908490,26.0,205.39,205.37,1.70205352]
[1759079908718,38.26,205.38,205.37,1.70205352]
[1759079908904,38.26,205.38,205.35,0.66]
[1759079909089,0.71,205.38,205.35,1.70205352]
[1759079909712,0.71,205.38,205.33,0.66]
[1759079909713,38.26,205.37,205.33,0.66]
[1759079909888,1.70205352,205.4,205.34,1.70205352]
[1759079910095,0.71,205.37,205.34,1.70205352]
[1759079911016,38.26,205.36,205.34,2.36205352]
[1759079911195,0.71,205.39,205.35,1.70205352]
[1759079911396,38.26,205.38,205.35,1.70205352]
[1759079911616,38.26,205.38,205.35,2.36205352]
[1759079911814,0.71,205.39,205.35,2.36205352]
[1759079912018,38.26,205.38,205.35,2.36205352]
[1759079912197,38.26,205.38,205.35,1.70205352]
[1759079912398,38.26,205.37,205.35,1.70205352]
[1759079912937,0.71,205.39,205.35,1.70205352]
[1759079913219,38.24,205.38,205.35,1.70205352]
[1759079913512,38.95,205.38,205.35,1.70205352]
[1759079914018,26.0,205.42,205.29,0.66]
[1759079914019,2.41205352,205.37,205.29,0.66]
[1759079914201,1.70205352,205.33,205.26,0.86]
[1759079914514,1.70205352,205.33,205.27,1.70205352]
[1759079914689,38.95,205.32,205.27,1.70205352]
[1759079915114,1.70205352,205.32,205.26,1.90205352]
[1759079915300,38.95,205.31,205.26,1.90205352]
[1759079915505,0.71,205.3,205.26,1.90205352]
[1759079915707,38.24,205.29,205.26,1.90205352]
[1759079916908,26.0,205.37,205.27,1.70205352]
[1759079917213,2.41205352,205.34,205.28,1.90205352]
[1759079917417,26.0,205.36,205.28,0.2]
[1759079917418,1.70205352,205.32,205.28,0.2]
[1759079917718,2.41205352,205.31,205.28,0.2]
[1759079917904,38.95,205.3,205.28,0.2]
[1759079918096,0.71,205.3,205.28,0.2]
[1759079918626,0.71,205.29,205.28,0.2]
[1759079918827,38.95,205.29,205.28,0.2]
[1759079919608,0.71,205.29,205.28,0.2]
[1759079919818,38.24,205.29,205.28,0.2]
[1759079920107,38.95,205.29,205.28,0.2]
[1759079921207,0.71,205.29,205.28,0.2]
[1759079921516,38.95,205.29,205.28,0.2]
[1759079921719,0.71,205.32,205.28,0.2]
[1759079921898,26.0,205.32,205.28,0.2]
[1759079922112,0.71,205.32,205.28,1.90205352]
[1759079922306,26.0,205.33,205.29,0.66]
[1759079922500,26.0,205.33,205.28,2.86326028]
[1759079922501,38.24,205.32,205.28,2.86326028]
[1759079922706,38.24,205.31,205.28,2.86326028]
[1759079923107,0.71,205.32,205.28,2.86326028]
[1759079923308,38.24,205.31,205.28,2.86326028]
[1759079923809,0.71,205.3,205.28,2.86326028]
[1759079924003,38.24,205.29,205.28,2.86326028]
[1759079924198,0.71,205.32,205.28,2.86326028]
[1759079924416,38.24,205.31,205.28,2.86326028]
[1759079924725,0.71,205.3,205.28,0.2]
[1759079924905,0.71,205.29,205.28,0.2]
[1759079925521,38.24,205.29,205.28,0.2]
[1759079926019,38.95,205.29,205.28,0.2]
[1759079926219,0.71,205.29,205.28,0.2]
[1759079926735,38.95,205.29,205.28,0.2]
[1759079927035,0.71,205.29,205.28,0.2]
[1759079927218,38.95,205.29,205.28,0.2]
[1759079927617,0.71,205.29,205.28,0.2]
[1759079927970,38.95,205.29,205.28,0.2]
[1759079929739,26.0,205.33,205.28,3.52326028]
[1759079930042,64.24,205.32,205.29,3.32326028]
[1759079930216,38.24,205.31,205.29,3.32326028]
[1759079932823,0.66,205.3,205.28,0.2]
[1759079933136,38.24,205.29,205.28,0.2]
[1759079933307,26.66,205.32,205.28,0.2]
[1759079933633,0.66,205.31,205.28,0.2]
[1759079933813,38.22,205.3,205.28,0.2]
[1759079934014,0.66,205.29,205.28,0.2]
[1759079934421,38.88,205.29,205.28,0.2]
[1759079936734,38.22,205.29,205.28,0.2]
[1759079937040,0.66,205.31,205.28,0.2]
[1759079937339,0.66,205.3,205.28,0.2]
[1759079937536,38.22,205.29,205.28,0.2]
[1759079937911,0.66,205.3,205.28,0.2]
[1759079938106,38.22,205.29,205.28,0.2]
[1759079938344,0.66,205.3,205.28,0.2]
[1759079938551,38.22,205.29,205.28,0.2]
[1759079938726,38.88,205.29,205.28,0.2]
[1759079939331,38.22,205.29,205.28,0.2]
[1759079941136,0.66,205.31,205.28,0.2]
[1759079941337,0.66,205.3,205.28,0.2]
[1759079941848,38.88,205.29,205.28,0.2]
[1759079942062,41.54326028,205.29,205.28,0.2]
[1759079942348,29.32326028,205.29,205.28,0.2]
[1759079942522,67.54326028,205.29,205.28,0.2]
[1759079942972,29.32326028,205.29,205.28,0.2]
[1759079943145,67.54326028,205.29,205.28,0.2]
[1759079943761,29.32326028,205.29,205.28,0.2]
[1759079944046,67.54326028,205.29,205.28,0.2]
[1759079944418,26.0,205.29,205.28,0.2]
[1759079944624,64.22,205.29,205.28,0.2]
[1759079945731,64.88,205.29,205.28,0.2]
[1759079945928,29.32326028,205.29,205.28,0.2]
[1759079946343,67.54326028,205.29,205.28,0.2]
[1759079947233,26.0,205.29,205.28,0.2]
[1759079947627,64.22,205.29,205.28,0.2]
[1759079949450,64.2,205.29,205.28,0.2]
[1759079949926,26.0,205.29,205.28,0.2]
[1759079950127,0.66,205.31,205.28,0.2]
[1759079950469,38.2,205.3,205.28,0.2]
[1759079951229,0.66,205.31,205.28,0.2]
[1759079951431,38.2,205.3,205.28,0.2]
[1759079951634,38.2,205.29,205.28,0.2]
[1759079952439,158.8,205.32,205.28,3.54326028]
[1759079952440,26.0,205.32,205.28,3.54326028]
[1759079952637,3.98799348,205.37,205.31,2.66326028]
[1759079952952,26.0,205.34,205.33,2.66326028]
[1759079953153,38.2,205.34,205.33,2.66326028]
[1759079953329,38.91,205.34,205.28,0.2]
[1759079953531,38.2,205.33,205.29,2.66326028]
[1759079953831,0.71,205.34,205.29,3.34326028]
[1759079954047,38.2,205.33,205.3,0.68]
[1759079954350,38.2,205.33,205.3,3.34326028]
[1759079954653,38.2,205.32,205.3,3.34326028]
[1759079954827,0.71,205.34,205.3,3.34326028]
[1759079955029,38.2,205.33,205.3,0.68]
[1759079955330,38.2,205.33,205.31,2.66326028]
[1759079955528,38.2,205.33,205.3,3.34326028]
[1759079957658,0.71,205.4,205.32,2.66326028]
[1759079957828,3.28493484,205.41,205.37,2.66326028]
[1759079958033,3.28493484,205.41,205.37,0.68]
[1759079958241,29.99493484,205.41,205.37,3.34326028]
[1759079958459,64.2,205.4,205.37,3.34326028]
[1759079958634,38.2,205.39,205.37,3.34326028]
[1759079959026,38.2,205.39,205.37,2.66326028]
[1759079961837,26.0,205.4,205.38,2.66326028]
[1759079962057,26.0,205.4,205.33,4.87017038]
[1759079962058,26.0,205.41,205.36,0.72]
[1759079962256,38.18,205.4,205.37,2.66326028]
[1759079963742,38.18,205.39,205.37,2.66326028]
[1759079965156,0.67,205.41,205.38,2.66326028]
[1759079965452,38.18,205.4,205.38,2.66326028]
[1759079966039,0.67,205.41,205.38,2.66326028]
[1759079966239,38.18,205.4,205.38,2.66326028]
[1759079966458,38.18,205.39,205.38,2.66326028]
[1759079967764,38.16,205.39,205.37,2.66326028]
[1759079968855,38.16,205.38,205.36,2.66326028]
[1759079969053,38.16,205.37,205.36,3.38326028]
[1759079969860,0.67,205.41,205.36,3.38326028]
[1759079970159,38.16,205.4,205.37,2.66326028]
[1759079970340,38.83,205.4,205.37,2.66326028]
[1759079970546,38.16,205.4,205.38,2.66326028]
[1759079971061,2.54755933,205.45,205.39,3.38326028]
[1759079971248,0.67,205.45,205.43,2.66326028]
[1759079971449,38.83,205.44,205.43,2.66326028]
[1759079971634,0.67,205.44,205.43,2.66326028]
[1759079971837,38.83,205.44,205.43,2.66326028]
[1759079972367,38.83,205.44,205.42,2.66326028]
[1759079972948,38.83,205.44,205.43,2.66326028]
[1759079973258,38.83,205.44,205.42,2.66326028]
[1759079974140,38.08,205.47,205.43,3.38326028]
[1759079974341,38.08,205.47,205.46,2.66326028]
[1759079974536,38.08,205.47,205.46,3.38326028]
[1759079974747,76.22,205.47,205.46,3.38326028]
[1759079977662,38.08,205.47,205.46,2.66326028]
[1759079977968,76.22,205.47,205.46,3.38326028]
[1759079978358,76.22,205.47,205.46,2.66326028]
[1759079980488,38.08,205.47,205.46,2.66326028]
[1759079980671,76.22,205.47,205.46,2.66326028]
[1759079981468,76.2,205.47,205.46,2.66326028]
[1759079981843,76.87,205.47,205.4,0.72]
[1759079982048,76.87,205.47,205.43,2.66326028]
[1759079982263,0.67,205.46,205.43,2.66326028]
[1759079982452,38.79,205.45,205.43,2.66326028]
[1759079982655,0.67,205.45,205.42,2.66326028]
[1759079982851,0.67,205.44,205.42,2.66326028]
[1759079983062,38.79,205.43,205.37,0.72]
[1759079983374,38.12,205.42,205.35,0.72]
[1759079983674,38.12,205.42,205.37,2.66326028]
[1759079983851,0.67,205.41,205.37,2.66326028]
[1759079984053,0.67,205.4,205.37,2.66326028]
[1759079984361,38.79,205.39,205.37,1.7031433]
[1759079984565,38.12,205.38,205.37,1.7031433]
[1759079988471,38.12,205.38,205.35,0.68146344]
[1759079988664,0.67,205.4,205.37,1.7031433]
[1759079988855,38.79,205.39,205.37,1.7031433]
[1759079989761,0.67,205.41,205.37,1.7031433]
[1759079989981,38.79,205.4,205.35,0.68146344]
[1759079990157,38.12,205.39,205.37,1.7031433]
[1759079990360,38.79,205.39,205.37,1.7031433]
[1759079990578,0.68,205.38,205.35,1.7031433]
[1759079991079,38.12,205.37,205.33,2.3731433]
[1759079991569,38.12,205.37,205.34,0.67]
[1759079993772,38.12,205.36,205.34,0.67]
[1759079995499,38.12,205.36,205.34,2.3731433]
[1759079996576,38.12,205.36,205.34,1.7031433]
[1759079997363,38.12,205.36,205.34,2.3731433]
[1759079997575,0.68,205.38,205.34,2.3731433]
[1759079997770,38.1,205.37,205.34,2.3731433]
[1759079998180,38.78,205.37,205.34,2.3731433]
[1759079998364,38.78,205.37,205.34,1.7031433]
[1759079998685,26.0,205.43,205.36,1.7031433]
[1759079998862,38.1,205.42,205.4,1.7031433]
[1759079999261,0.68,205.42,205.37,0.67]
[1759079999473,38.1,205.41,205.39,1.7031433]
[1759079999863,27.7031433,205.44,205.38,1.7031433]
[1759079999864,0.68,205.4,205.38,1.7031433]
[1759080000065,38.1,205.39,205.38,1.7031433]
[1759080000263,0.68,205.4,205.38,1.7031433]
[1759080000467,38.78,205.39,205.26,86.3125732]
[1759080000762,38.1,205.38,205.33,1.7031433]
[1759080000958,0.68,205.38,205.35,1.7031433]
[1759080001275,38.1,205.37,205.35,2.3731433]
[1759080001485,38.1,205.36,205.35,1.7031433]
[1759080003173,0.68,205.36,205.31,0.67]
[1759080003358,0.68,205.36,205.3,13.59559401]
[1759080003359,38.1,205.35,205.26,0.2]
[1759080003565,2.3831433,205.35,205.3,1.7031433]
[1759080003767,38.78,205.34,205.3,1.7031433]
[1759080003980,38.78,205.33,205.3,1.7031433]
[1759080004175,0.68,205.32,205.29,1.7031433]
[1759080004681,38.1,205.31,205.29,1.7031433]
[1759080005183,38.1,205.3,205.29,1.7031433]
[1759080006966,0.68,205.36,205.29,2.3731433]
[1759080007175,38.1,205.35,205.32,1.7031433]
[1759080007374,0.68,205.35,205.32,1.7031433]
[1759080007583,38.1,205.34,205.32,1.7031433]
[1759080009778,38.1,205.34,205.3,0.67]
[1759080009779,0.68,205.38,205.33,2.3731433]
[1759080009987,38.1,205.37,205.35,1.7031433]
[1759080010587,38.78,205.37,205.35,1.7031433]
[1759080010776,38.78,205.37,205.34,1.7031433]
[1759080010980,0.68,205.36,205.32,0.67]
[1759080011283,0.68,205.36,205.34,1.7031433]
[1759080011479,38.1,205.35,205.34,1.7031433]
[1759080013483,0.68,205.37,205.34,1.7031433]
[1759080013683,26.0,205.42,205.3,30.87090822]
[1759080013684,38.76,205.36,205.33,1.7031433]
[1759080013995,0.68,205.35,205.33,1.7031433]
[1759080015895,38.08,205.36,205.3,1.7031433]
[1759080015896,0.68,205.34,205.3,1.7031433]
[1759080016076,0.68,205.33,205.3,1.7031433]
[1759080016271,38.08,205.32,205.3,1.7031433]
[1759080016480,0.68,205.32,205.29,1.7031433]
[1759080016796,38.08,205.31,205.29,1.7031433]
[1759080017385,38.76,205.31,205.28,0.2]
[1759080017696,0.68,205.3,205.28,0.2]
[1759080018079,38.08,205.29,205.28,0.2]
[1759080019895,38.08,205.29,205.28,1.9031433]
[1759080020096,38.76,205.29,205.28,1.9031433]
[1759080020502,0.68,205.29,205.28,1.9031433]
[1759080020696,38.76,205.29,205.28,1.9031433]
[1759080021003,0.68,205.29,205.28,1.9031433]
[1759080021185,38.76,205.29,205.28,0.2]
[1759080021888,1.7031433,205.32,205.28,0.2]
[1759080022085,38.08,205.31,205.29,2.3931433]
[1759080022292,0.72,205.34,205.3,1.7031433]
[1759080022516,38.08,205.33,205.31,1.7031433]
[1759080022683,38.8,205.33,205.3,1.7031433]
[1759080022889,38.08,205.32,205.3,1.7031433]
[1759080023204,0.72,205.33,205.3,1.7031433]
[1759080023398,0.72,205.33,205.31,1.7031433]
[1759080023399,38.08,205.32,205.31,1.7031433]
[1759080023606,38.8,205.32,205.31,1.7031433]
[1759080023793,38.08,205.32,205.31,1.7031433]
[1759080023998,0.72,205.34,205.3,1.7031433]
[1759080024189,38.08,205.32,205.3,1.7031433]
[1759080025010,38.08,205.31,205.3,1.7031433]
[1759080025906,0.72,205.36,205.3,7.26395069]
[1759080026106,1.7031433,205.4,205.33,1.7031433]
[1759080026286,0.72,205.38,205.33,2.3931433]
[1759080026485,0.72,205.38,205.34,1.7031433]
[1759080026686,38.08,205.39,205.34,1.7031433]
[1759080026885,1.7031433,205.4,205.34,1.7031433]
[1759080026886,0.72,205.37,205.34,1.7031433]
[1759080027904,0.72,205.41,205.35,2.3931433]
[1759080028116,0.72,205.41,205.37,1.7031433]
[1759080028303,38.08,205.4,205.38,1.7031433]
[1759080028497,0.72,205.4,205.37,1.7031433]
[1759080028703,38.08,205.39,205.37,1.7031433]
[1759080029006,38.08,205.39,205.36,1.7031433]
[1759080029213,38.8,205.39,205.36,1.7031433]
[1759080029413,0.72,205.39,205.36,1.7031433]
[1759080029923,38.08,205.38,205.36,1.7031433]
[1759080030105,0.72,205.39,205.36,1.7031433]
[1759080030293,38.08,205.38,205.36,1.7031433]
[1759080031110,38.06,205.37,205.34,5.55996168]
[1759080031314,0.72,205.39,205.36,1.7031433]
[1759080031617,38.06,205.38,205.36,1.7031433]
[1759080031815,0.72,205.39,205.36,1.7031433]
[1759080032012,38.06,205.38,205.36,1.7031433]
[1759080032221,38.06,205.37,205.36,1.7031433]
[1759080032392,0.72,205.39,205.36,1.7031433]
[1759080032593,38.06,205.37,205.36,1.7031433]
[1759080032801,38.06,205.37,205.33,0.69]
[1759080033053,0.72,205.36,205.33,1.7031433]
[1759080033314,0.72,205.4,205.35,1.7031433]
[1759080033493,27.7031433,205.43,205.37,1.7031433]
[1759080033801,26.0,205.42,205.38,1.7031433]
[1759080033995,26.72,205.42,205.38,1.7031433]
[1759080034196,0.72,205.42,205.39,1.7031433]
[1759080034527,38.06,205.41,205.39,1.7031433]
[1759080035308,134.5031433,205.46,205.4,1.7031433]
[1759080035619,134.5031433,205.46,205.4,2.3931433]
[1759080035620,38.78,205.45,205.4,2.3931433]
[1759080035798,38.78,205.44,205.4,1.7031433]
[1759080036203,38.06,205.44,205.4,1.7031433]
[1759080036407,0.72,205.43,205.4,1.7031433]
[1759080037412,38.06,205.42,205.4,1.7031433]
[1759080037816,38.06,205.42,205.39,1.7031433]
[1759080038024,38.78,205.42,205.39,1.7031433]
[1759080038200,0.72,205.42,205.39,1.7031433]
[1759080038398,38.06,205.41,205.39,1.7031433]
[1759080039813,0.72,205.42,205.39,1.7031433]
[1759080040120,38.06,205.41,205.39,1.7031433]
[1759080040421,38.06,205.4,205.39,1.7031433]
[1759080040915,0.72,205.42,205.39,1.7031433]
[1759080041093,38.04,205.41,205.39,1.7031433]
[1759080041715,0.72,205.43,205.39,1.7031433]
[1759080041904,38.04,205.4,205.39,1.7031433]
[1759080042301,0.72,205.43,205.39,1.7031433]
[1759080042714,38.04,205.42,205.39,1.7031433]
[1759080042908,0.72,205.43,205.39,1.7031433]
[1759080043115,38.04,205.41,205.39,1.7031433]
[1759080044008,0.72,205.43,205.39,1.7031433]
[1759080044208,38.04,205.42,205.39,2.66028782]
[1759080044422,0.72,205.43,205.39,2.66028782]
[1759080044615,38.04,205.42,205.39,2.66028782]
[1759080044818,38.04,205.42,205.39,3.35028782]
[1759080046424,0.72,205.43,205.39,3.35028782]
[1759080046629,38.04,205.42,205.39,3.35028782]
[1759080046820,38.76,205.42,205.39,3.35028782]
[1759080047699,2.66028782,205.4,205.34,3.35028782]
[1759080047904,0.72,205.39,205.34,2.66028782]
[1759080048103,0.72,205.39,205.32,0.69]
[1759080048104,41.42028782,205.38,205.32,2.66028782]
[1759080048316,3.38028782,205.37,205.31,2.66028782]
[1759080048526,2.66028782,205.35,205.29,2.66028782]
[1759080048732,41.42028782,205.34,205.28,0.2]
[1759080048932,2.66028782,205.32,205.28,0.2]
[1759080049231,0.72,205.31,205.28,0.2]
[1759080049529,38.76,205.3,205.28,0.2]
[1759080050236,0.72,205.3,205.28,0.2]
[1759080050530,38.04,205.29,205.28,0.2]
[1759080051015,0.72,205.3,205.28,0.2]
[1759080051216,38.04,205.29,205.28,0.2]
[1759080052030,0.72,205.3,205.28,0.2]
[1759080052231,38.04,205.29,205.28,0.2]
[1759080052539,38.76,205.29,205.28,0.2]
[1759080052925,41.42028782,205.29,205.28,0.2]
[1759080053239,3.38028782,205.29,205.28,0.2]
[1759080053441,41.42028782,205.29,205.28,0.2]
[1759080053640,3.38028782,205.29,205.28,0.2]
[1759080053847,41.42028782,205.29,205.28,0.2]
[1759080054431,38.76,205.29,205.28,0.2]
[1759080055428,3.38028782,205.29,205.28,0.2]
[1759080055624,41.42028782,205.29,205.28,0.2]
[1759080057524,3.38028782,205.29,205.28,0.2]
[1759080058025,41.42028782,205.29,205.28,0.2]
[1759080058740,3.38028782,205.29,205.28,0.2]
[1759080058924,38.76,205.29,205.28,0.2]
[1759080060549,0.72,205.29,205.28,0.2]
[1759080060844,38.76,205.29,205.28,0.2]
[1759080061051,41.42028782,205.29,205.28,0.2]
[1759080061543,3.38028782,205.29,205.28,0.2]
[1759080061944,41.42028782,205.29,205.28,0.2]
[1759080062328,187.81588183,205.29,205.28,0.2]
[1759080062524,149.77588183,205.29,205.28,0.2]
[1759080062729,187.81588183,205.29,205.28,0.2]
[1759080062936,149.77588183,205.29,205.28,0.2]
[1759080063761,187.81588183,205.29,205.28,0.2]
[1759080065248,149.77588183,205.29,205.28,0.2]
[1759080065553,59.8870397,205.29,205.28,0.2]
[1759080065934,61.84231283,205.29,205.28,0.2]
[1759080066134,13.59559401,205.28,205.26,0.2]
[1759080066329,43.36057564,205.27,205.26,0.2]
[1759080066535,19.63616965,205.27,205.26,0.2]
[1759080066745,26.46326644,205.27,205.26,0.2]
[1759080066933,64.50326644,205.27,205.26,0.2]
[1759080067138,39.59559401,205.25,205.24,0.2]
[1759080067433,54.29588183,205.25,205.24,0.2]
[1759080067638,16.97588183,205.25,205.24,0.2]
[1759080067858,55.01588183,205.25,205.24,0.2]
[1759080068234,21.84798901,205.25,205.24,0.2]
[1759080068452,47.84798901,205.25,205.24,0.2]
[1759080068755,59.88798901,205.25,205.24,0.2]
[1759080069465,21.84798901,205.25,205.24,0.2]
[1759080069649,59.88798901,205.25,205.24,0.2]
[1759080069835,47.84798901,205.25,205.24,0.2]
[1759080070036,59.88798901,205.25,205.24,0.2]
[1759080070242,55.01588183,205.25,205.24,0.2]
[1759080070448,59.88798901,205.25,205.24,0.2]
[1759080071149,55.01588183,205.25,205.24,0.2]
[1759080071460,16.97588183,205.25,205.24,0.2]
[1759080071631,56.97153734,205.25,205.24,0.2]
[1759080072136,61.84364452,205.25,205.24,0.2]
[1759080072355,56.97153734,205.25,205.24,0.2]
[1759080072858,18.93153734,205.25,205.24,0.2]
[1759080073060,56.97153734,205.25,205.24,0.2]
[1759080073263,61.84364452,205.25,205.24,0.2]
[1759080073745,56.97153734,205.25,205.24,0.2]
[1759080074250,44.93153734,205.25,205.24,0.2]
[1759080074450,56.97153734,205.25,205.24,0.2]
[1759080075057,53.59124952,205.25,205.24,0.2]
[1759080075268,38.08,205.28,205.24,0.87]
[1759080075440,2.66028782,205.26,205.24,0.87]
[1759080075638,40.70028782,205.25,205.24,0.87]
[1759080075839,28.66028782,205.25,205.24,0.87]
[1759080076163,66.70028782,205.25,205.24,0.87]
[1759080076650,40.70028782,205.25,205.24,0.87]
[1759080077949,28.66028782,205.25,205.24,0.87]
[1759080078156,66.70028782,205.25,205.24,0.2]
[1759080078561,28.66028782,205.25,205.24,0.2]
[1759080078855,66.70028782,205.25,205.24,0.2]
[1759080079053,66.68028782,205.25,205.24,0.2]
[1759080081346,67.38028782,205.25,205.24,0.2]
[1759080081547,29.36028782,205.25,205.24,0.2]
[1759080081739,80.97588183,205.25,205.24,0.2]
[1759080081945,28.66028782,205.25,205.24,0.92]
[1759080082160,28.66028782,205.25,205.24,0.2]
[1759080082971,66.68028782,205.25,205.24,0.2]
[1759080083464,67.38028782,205.25,205.24,0.2]
[1759080083664,66.68028782,205.25,205.24,0.2]
[1759080084847,29.36028782,205.25,205.24,0.2]
[1759080085043,67.38028782,205.25,205.24,0.2]
[1759080085246,29.36028782,205.25,205.24,0.2]
[1759080085762,67.38028782,205.25,205.24,0.2]
[1759080085965,80.97588183,205.25,205.24,0.2]
[1759080086364,42.95588183,205.25,205.24,0.2]
[1759080086558,80.97588183,205.25,205.24,0.2]